fUST/lending_fUST_20240112
["ID","MTS","AMOUNT","RATE_DAILY","PERIOD"]
[311297569,1705045840913,-4323.328839,0.00022753,2]
[311297572,1705045840925,-4323.328839,0.00022753,2]
[311297575,1705045840936,-2093.76186828,0.00023,2]
[311297578,1705045840946,-171.185352,0.000232,2]
[311297580,1705045840957,-171.185352,0.00023841,2]
[311297582,1705045840966,-4005.78937176,0.00024,2]
[311297584,1705045840975,-614.24237866,0.00024481,2]
[311297586,1705045840984,-171.185352,0.00024482,2]
[311297588,1705045840992,-227.78637671,0.00025,2]
[311297590,1705045841000,-159.2031486,0.00025479,2]
[311297592,1705045841010,-460.54851784,0.00027,2]
[311297594,1705045841021,-155.05582134,0.00027086,2]
[311297596,1705045841030,-9100.04106185,0.000273,4]
[311297598,1705045841039,-2000.0,0.000278,2]
[311297600,1705045841048,-347.28307538,0.000279,2]
[311297602,1705045841057,-623.72973544,0.00028872,2]
[311297604,1705045841066,-1000.0,0.00029,29]
[311297606,1705045841075,-3025.65541023,0.00029,2]
[311297608,1705045841084,-217.36337204,0.0002907,2]
[311297610,1705045841093,-155.0,0.00029136,2]
[311297612,1705045841104,-152.31739519,0.00029164,2]
[311297615,1705045841114,-331.99139353,0.00029689,2]
[311297885,1705046046808,5903.15419483,0.000125,2]
[311297886,1705046100783,155.06047358,0.000125,2]
[311297887,1705046105672,3212.89361584,0.000125,2]
[311297888,1705046114794,155.42235752,0.000125,2]
[311297889,1705046125697,3212.89361584,0.000125,2]
[311297890,1705046147676,3212.89361584,0.000125,2]
[311297891,1705046171839,3212.89361584,0.000125,2]
[311297892,1705046191683,3212.89361584,0.000125,2]
[311297894,1705046207684,3212.89361584,0.000125,2]
[311297896,1705046227678,2967.27684284,0.000125,2]
[311297897,1705046230302,155.0558201,0.000125,2]
[311297898,1705046244484,155.0558201,0.000125,2]
[311297899,1705046260568,155.0558201,0.000125,2]
[311297900,1705046278301,214.86184259,0.000125,2]
[311297902,1705046393606,333.90826657,0.000125,5]
[311297903,1705046393640,156.19984402,0.000125,2]
[311297904,1705046401770,156.9151563,0.000125,2]
[311297909,1705046535843,1160.51772408,0.000125,2]
[311297915,1705046590343,155.05737123,0.000125,2]
[311297968,1705047031912,-4247.95811646,0.00020999,2]
[311297970,1705047031921,-232.59751051,0.00021,2]
[311297972,1705047031931,-2419.44437303,0.00021,2]
[311298021,1705047038334,-19481.41501088,0.00021,2]
[311298023,1705047038344,-2093.76186828,0.00023,2]
[311298025,1705047038353,-170.81326,0.00023043,2]
[311298027,1705047038362,-166.666666,0.00023348,2]
[311298029,1705047038371,-308.953226,0.00023504,2]
[311298031,1705047038380,-151.69317899,0.00023952,2]
[311298033,1705047038390,-9924.74397112,0.00023999,2]
[311298034,1705047038399,-614.24237866,0.00024,2]
[311298036,1705047038409,-166.666666,0.00024144,2]
[311298037,1705047038420,-166.666666,0.0002494,2]
[311298039,1705047038548,-4005.78937176,0.00024988,2]
[311298040,1705047038557,-4005.78937176,0.00024989,2]
[311298041,1705047038568,-2691.29,0.0002499,3]
[311298042,1705047038577,-2242.74,0.0002499,3]
[311298043,1705047038586,-3399.69,0.00024999,3]
[311298044,1705047038596,-1539.30122798,0.00025,2]
[311298045,1705047038605,-11118.64921851,0.00025,2]
[311298046,1705047038615,-1000.24247005,0.00025,2]
[311298048,1705047038624,-2000.0,0.00025,2]
[311298049,1705047038634,-155.05116689,0.00025008,2]
[311298050,1705047038643,-1355.73568867,0.00025009,2]
[311298051,1705047038653,-2000.0,0.0002501,2]
[311298052,1705047038662,-2833.08,0.0002501,3]
[311298053,1705047038671,-2000.0,0.0002502,2]
[311298054,1705047038680,-2000.0,0.0002503,2]
[311298056,1705047038690,-2000.0,0.0002504,2]
[311298057,1705047038699,-2000.0,0.0002505,2]
[311298058,1705047038709,-2000.0,0.0002506,2]
[311298059,1705047038720,-2000.0,0.0002507,2]
[311298060,1705047038730,-2000.0,0.0002508,2]
[311298061,1705047038739,-2000.0,0.0002509,2]
[311298062,1705047038749,-2000.0,0.000251,2]
[311298063,1705047038759,-2000.0,0.0002511,2]
[311298064,1705047038768,-3292.729325,0.0002512,2]
[311298065,1705047038777,-231.52205025,0.000252,2]
[311298066,1705047038787,-2093.74877759,0.00025297,2]
[311298067,1705047038795,-185.09175555,0.000256,2]
[311298068,1705047038805,-244.92582195,0.000256,2]
[311298069,1705047038815,-166.666666,0.00025736,2]
[311298070,1705047038823,-159.87666002,0.00026097,2]
[311298071,1705047038833,-166.666666,0.00026531,2]
[311298072,1705047038843,-1315.71989545,0.000273,4]
[311298073,1705047038852,-331.23132764,0.00027397,2]
[311298074,1705047038861,-415.48279619,0.00027397,2]
[311298075,1705047038871,-2668.75780514,0.00027397,2]
[311298076,1705047038880,-289.5463958,0.00027547,2]
[311298077,1705047038891,-9298.21302204,0.00028,2]
[311298078,1705047038900,-10623.80376589,0.00028749,2]
[311298079,1705047038909,-6558.68538265,0.00028798,2]
[311298080,1705047038918,-197.24618804,0.00028895,2]
[311298081,1705047038928,-155.05116689,0.00028898,10]
[311298082,1705047038937,-10511.80674888,0.000289,2]
[311298083,1705047038946,-2153.62258328,0.00028993,2]
[311298084,1705047038955,-522.53516386,0.00028993,2]
[311298085,1705047038965,-1704.90347238,0.00028994,2]
[311298086,1705047038974,-2070.70229933,0.00028994,2]
[311298087,1705047038983,-296.02443686,0.00028994,2]
[311298088,1705047038993,-155.35216624,0.00028994,2]
[311298089,1705047039002,-204.98164116,0.00028994,2]
[311298090,1705047039011,-3083.76102233,0.00028994,2]
[311298091,1705047039020,-155.24251227,0.00028995,2]
[311298092,1705047039030,-156.56971252,0.00028995,2]
[311298093,1705047039039,-1575.56837928,0.00028995,2]
[311298094,1705047039049,-223.90991459,0.00028995,2]
[311298095,1705047039058,-15877.13272686,0.00028995,2]
[311298096,1705047039067,-155.6826505,0.00028995,2]
[311298097,1705047039077,-282.19768026,0.00028995,2]
[311298098,1705047039088,-155.63058547,0.00028995,2]
[311298099,1705047039098,-612.83509363,0.00028995,2]
[311298100,1705047039109,-275.00167511,0.00028995,2]
[311298101,1705047039118,-307.21146084,0.00028996,2]
[311298102,1705047039127,-14018.44892128,0.00028996,2]
[311298103,1705047039137,-201.95619366,0.00028996,2]
[311298104,1705047039146,-155.06202481,0.00028997,2]
[311298105,1705047039156,-630.56557708,0.00028997,2]
[311298106,1705047039166,-687.75702701,0.00028997,2]
[311298107,1705047039175,-293.81485461,0.00028997,2]
[311298108,1705047039185,-191.28393328,0.00028998,2]
[311298109,1705047039197,-155.2610649,0.00028998,2]
[311298110,1705047039207,-1712.82691585,0.00028998,2]
[311298111,1705047039217,-237.7053383,0.00028998,2]
[311298112,1705047039227,-460.75992736,0.00028998,2]
[311298113,1705047039238,-642.93704766,0.00028998,2]
[311298114,1705047039249,-2076.82617599,0.00028998,2]
[311298115,1705047039259,-2912.17,0.00028999,2]
[311298116,1705047039268,-2912.17,0.00028999,2]
[311298117,1705047039278,-2912.17,0.00028999,2]
[311298118,1705047039287,-2912.17,0.00028999,2]
[311298119,1705047039296,-2912.17,0.00028999,2]
[311298120,1705047039306,-2912.17,0.00028999,2]
[311298121,1705047039315,-2912.17,0.00028999,2]
[311298122,1705047039324,-2912.17,0.00028999,2]
[311298123,1705047039333,-2912.17,0.00028999,2]
[311298124,1705047039343,-118649.9523494,0.00029,2]
[311298125,1705047039351,-3025.65541023,0.00029,2]
[311298126,1705047039361,-79492.16914164,0.00029,2]
[311298127,1705047039370,-310.07132537,0.00029,2]
[311298128,1705047039379,-197.246188,0.00029069,2]
[311298129,1705047039389,-63287.15751683,0.0002907,2]
[311298130,1705047039398,-14767.0034206,0.0002907,3]
[311298131,1705047039407,-197.246188,0.00029242,2]
[311298132,1705047039417,-49653.10630059,0.000293,5]
[311298133,1705047039426,-151.0,0.000293,2]
[311298134,1705047039435,-1456.573487,0.000293,2]
[311298135,1705047039444,-1456.573487,0.000293,2]
[311298136,1705047039453,-2000.0,0.000293,2]
[311298137,1705047039462,-2000.0,0.000293,2]
[311298138,1705047039474,-167.10606654,0.00029332,2]
[311298139,1705047039483,-620.16542571,0.00029369,2]
[311298140,1705047039492,-197.246188,0.00029416,2]
[311298141,1705047039501,-978.10769969,0.000295,3]
[311298142,1705047039511,-197.246188,0.00029589,2]
[311298143,1705047039520,-151.0,0.00029637,2]
[311298144,1705047039530,-2912.17,0.00029688,2]
[311298145,1705047039539,-155.0558201,0.00029689,2]
[311298146,1705047039549,-483.70402336,0.00029689,2]
[311298147,1705047039559,-1822.38176649,0.00029689,2]
[311298148,1705047039568,-305.10874727,0.00029689,2]
[311298149,1705047039577,-200.0,0.00029689,2]
[311298150,1705047039587,-261.04615334,0.00029689,2]
[311298151,1705047039597,-300.0,0.00029689,2]
[311298152,1705047039607,-2080.28320628,0.00029689,2]
[311298153,1705047039616,-283618.80818613,0.00029689,7]
[311298154,1705047039625,-3314.65607422,0.00029689,2]
[311298155,1705047039634,-151.0,0.00029689,2]
[311298156,1705047039644,-1456.573487,0.00029689,2]
[311298157,1705047039653,-1456.573487,0.00029689,2]
[311298158,1705047039663,-2000.0,0.00029689,2]
[311298159,1705047039672,-2000.0,0.00029689,2]
[311298160,1705047039682,-193.23224345,0.00029689,2]
[311298161,1705047039691,-254.3791948,0.00029701,3]
[311298162,1705047039700,-245346.27232575,0.000298,2]
[311298215,1705047041024,-5955.69147052,0.000298,2]
[311298219,1705047041036,-2772.20025621,0.000298,2]
[311298221,1705047041048,-2093.60871813,0.000298,2]
[311298239,1705047042988,-2373.00000003,0.000298,2]
[311298250,1705047062112,200.0,0.0002,2]
[311298256,1705047068260,300.0,0.0002,2]
[311298259,1705047076902,2080.28320628,0.0002,2]
[311298260,1705047080120,200.0,0.0002,2]
[311298265,1705047088251,300.0,0.0002,2]
[311298266,1705047092935,2080.28320628,0.0002,2]
[311298267,1705047098544,23523.85849213,0.0002,2]
[311298273,1705047173821,200.0,0.00021999,7]
[311298274,1705047199484,1000.0,0.0003,30]
[311298279,1705047431873,-1030.96840335,0.00019999,2]
[311298280,1705047431894,-29592.03159665,0.0002,2]
[311298336,1705048064978,159.87666002,0.00017998,2]
[311298358,1705048183172,283618.80818613,0.00017998,2]
[311298359,1705048199168,16221.31515385,0.00017998,2]
[311298360,1705048199722,-12000.0,0.00017998,2]
[311298361,1705048199907,-12000.0,0.00017998,2]
[311298362,1705048200034,-12000.0,0.00017998,2]
[311298363,1705048200192,-12000.0,0.00017998,2]
[311298364,1705048200344,-8735.25466775,0.00017998,2]
[311298405,1705048233084,-170.5489181,0.00018994,2]
[311298406,1705048233094,-308.953226,0.00018995,2]
[311298407,1705048233103,-170.81326,0.00019178,2]
[311298408,1705048233216,-75.37201037,0.00019299,2]
[311298443,1705048238321,-109.71974518,0.00019299,2]
[311298445,1705048238332,-6558.68538265,0.000194,2]
[311298446,1705048238343,-522.53516386,0.00019996,2]
[311298447,1705048238357,-307.21146084,0.00019997,2]
[311298448,1705048238368,-193.23224345,0.00019998,2]
[311298449,1705048238381,-642.93704766,0.00019998,2]
[311298450,1705048238392,-223.90991459,0.00019998,2]
[311298451,1705048238404,-282.19768026,0.00019998,2]
[311298452,1705048238415,-155.24251227,0.00019998,2]
[311298453,1705048238427,-155.6826505,0.00019998,2]
[311298454,1705048238439,-1704.90347238,0.00019998,2]
[311298455,1705048238453,-1712.82691585,0.00019998,2]
[311298456,1705048238465,-191.28393328,0.00019998,2]
[311298457,1705048238479,-155.35216624,0.00019998,2]
[311298458,1705048238492,-612.83509363,0.00019998,2]
[311298459,1705048238506,-2070.70229933,0.00019998,2]
[311298460,1705048238519,-204.98164116,0.00019998,2]
[311298461,1705048238532,-15877.13272686,0.00019998,2]
[311298462,1705048238545,-14018.44892128,0.00019998,2]
[311298463,1705048238556,-155.63058547,0.00019998,2]
[311298464,1705048238567,-155.2610649,0.00019998,2]
[311298465,1705048238578,-201.95619366,0.00019998,2]
[311298466,1705048238592,-156.56971252,0.00019999,2]
[311298467,1705048238605,-275.00167511,0.00019999,2]
[311298468,1705048238618,-1575.56837928,0.00019999,2]
[311298469,1705048238630,-200.0,0.0002,2]
[311298470,1705048238645,-155.05737123,0.0002,2]
[311298471,1705048238656,-166.666666,0.00021918,2]
[311298472,1705048238666,-296.02443686,0.00022,2]
[311298473,1705048238676,-3083.76102233,0.00022,2]
[311298474,1705048238686,-166.666666,0.00022559,2]
[311298475,1705048238699,-9924.74397112,0.00023,2]
[311298476,1705048238711,-2093.76186828,0.00023,2]
[311298477,1705048238722,-166.666666,0.000232,2]
[311298478,1705048238732,-166.666666,0.00023841,2]
[311298479,1705048238743,-2443.3,0.0002397,3]
[311298480,1705048238753,-3179.01,0.0002398,3]
[311298481,1705048238764,-3814.81,0.0002399,3]
[311298482,1705048238775,-4005.78937176,0.00024,2]
[311298483,1705048238786,-614.24237866,0.00024,2]
[311298484,1705048238796,-166.666666,0.00024482,2]
[311298485,1705048238808,-155.04341216,0.00025,2]
[311298486,1705048238819,-155.06202481,0.00025,2]
[311298487,1705048238830,-293.81485461,0.00025,2]
[311298488,1705048238841,-4712.57883465,0.00025,2]
[311298489,1705048238852,-630.56557708,0.00025,2]
[311298490,1705048238862,-289.5463958,0.00025,2]
[311298491,1705048238873,-687.75702701,0.000257,2]
[311298492,1705048238884,-2153.62258328,0.00026,2]
[311298493,1705048238894,-623.15879318,0.00026716,2]
[311298494,1705048238905,-460.75992736,0.00027,2]
[311298495,1705048238916,-155.04651395,0.00027,10]
[311298496,1705048238927,-197.24618804,0.00027297,2]
[311298497,1705048238938,-1315.71989545,0.000273,4]
[311298498,1705048238953,-500.0,0.00027397,2]
[311298499,1705048238964,-500.0,0.00027397,2]
[311298500,1705048238975,-500.0,0.00027397,2]
[311298501,1705048238986,-500.0,0.00027397,2]
[311298502,1705048238998,-500.0,0.00027397,2]
[311298503,1705048239009,-500.0,0.00027397,2]
[311298504,1705048239020,-501.84801416,0.00027397,2]
[311298505,1705048239031,-500.0,0.00027397,2]
[311298506,1705048239043,-500.0,0.00027397,2]
[311298507,1705048239054,-501.01217396,0.00027397,2]
[311298508,1705048239065,-501.47295137,0.00027397,2]
[311298509,1705048239076,-501.24386082,0.00027397,2]
[311298510,1705048239087,-167.9891494,0.00027397,2]
[311298511,1705048239098,-500.0,0.00027397,2]
[311298512,1705048239109,-500.0,0.00027397,2]
[311298513,1705048239120,-500.0,0.00027397,2]
[311298514,1705048239131,-500.0,0.00027397,2]
[311298515,1705048239142,-500.0,0.00027397,2]
[311298516,1705048239153,-500.0,0.00027397,2]
[311298517,1705048239164,-500.0,0.00027397,2]
[311298518,1705048239175,-500.0,0.00027397,2]
[311298519,1705048239187,-502.04578957,0.00027397,2]
[311298520,1705048239201,-500.71199538,0.00027397,2]
[311298521,1705048239338,-500.0,0.00027397,2]
[311298522,1705048239355,-689.75,0.00027397,2]
[311298523,1705048239364,-500.0,0.00027397,2]
[311298524,1705048239374,-502.34859861,0.00027397,2]
[311298525,1705048239383,-500.0,0.00027397,2]
[311298526,1705048239393,-500.0,0.00027397,2]
[311298527,1705048239402,-500.0,0.00027397,2]
[311298528,1705048239413,-502.24841496,0.00027397,2]
[311298529,1705048239422,-500.0,0.00027397,2]
[311298530,1705048239431,-500.0,0.00027397,2]
[311298531,1705048239440,-503.72216458,0.00027397,2]
[311298532,1705048239455,-500.0,0.00027397,2]
[311298533,1705048239464,-500.59982654,0.00027397,2]
[311298534,1705048239473,-1000.0,0.00027397,2]
[311298535,1705048239483,-501.36257294,0.00027397,2]
[311298536,1705048239492,-500.0,0.00027397,2]
[311298537,1705048239501,-500.83927015,0.00027397,2]
[311298538,1705048239511,-500.0,0.00027397,2]
[311298539,1705048239520,-500.0,0.00027397,2]
[311298540,1705048239530,-500.0,0.00027397,2]
[311298541,1705048239539,-514.93362582,0.00027397,2]
[311298542,1705048239548,-500.0,0.00027397,2]
[311298543,1705048239558,-500.0,0.00027397,2]
[311298544,1705048239567,-500.0,0.00027397,2]
[311298545,1705048239576,-500.0,0.00027397,2]
[311298546,1705048239586,-506.61887692,0.00027397,2]
[311298547,1705048239595,-500.0,0.00027397,2]
[311298548,1705048239604,-798.81,0.00027397,2]
[311298549,1705048239613,-500.0,0.00027397,2]
[311298550,1705048239622,-626.95096932,0.00027397,2]
[311298551,1705048239633,-500.0,0.00027397,2]
[311298552,1705048239643,-196.04503044,0.00027397,2]
[311298553,1705048239652,-500.0,0.00027397,2]
[311298554,1705048239661,-500.88932975,0.00027397,2]
[311298555,1705048239670,-500.0,0.00027397,2]
[311298556,1705048239679,-500.0,0.00027397,2]
[311298557,1705048239689,-500.0,0.00027397,2]
[311298558,1705048239701,-5040.78024938,0.00027397,10]
[311298559,1705048239710,-500.0,0.00027397,2]
[311298560,1705048239719,-500.0,0.00027397,2]
[311298561,1705048239728,-500.0,0.00027397,2]
[311298562,1705048239738,-503.06721121,0.00027397,2]
[311298563,1705048239747,-356.77250309,0.00027397,2]
[311298564,1705048239756,-500.0,0.00027397,2]
[311298565,1705048239765,-500.0,0.00027397,2]
[311298566,1705048239774,-500.0,0.00027397,2]
[311298567,1705048239784,-500.0,0.00027397,2]
[311298568,1705048239793,-202.88287603,0.00027397,2]
[311298569,1705048239802,-500.0,0.00027397,2]
[311298570,1705048239812,-558.9782599,0.00027397,2]
[311298571,1705048239821,-502.16684977,0.00027397,2]
[311298572,1705048239830,-500.0,0.00027397,2]
[311298573,1705048239839,-506.61856597,0.00027397,2]
[311298574,1705048239848,-1872.03,0.00027397,2]
[311298575,1705048239858,-500.0,0.00027397,2]
[311298576,1705048239867,-500.0,0.00027397,2]
[311298577,1705048239876,-500.0,0.00027397,2]
[311298578,1705048239885,-500.0,0.00027397,2]
[311298579,1705048239895,-500.0,0.00027397,2]
[311298580,1705048239904,-572.23170912,0.00027397,2]
[311298581,1705048239913,-500.0,0.00027397,2]
[311298582,1705048239923,-500.39750375,0.00027397,2]
[311298583,1705048239932,-500.0,0.00027397,2]
[311298584,1705048239941,-500.0,0.00027397,2]
[311298585,1705048239955,-503.59425877,0.00027397,2]
[311298586,1705048239964,-500.0,0.00027397,2]
[311298587,1705048239974,-500.0,0.00027397,2]
[311298588,1705048239983,-502.54990328,0.00027397,2]
[311298589,1705048239992,-500.0,0.00027397,2]
[311298590,1705048240001,-500.0,0.00027397,2]
[311298591,1705048240010,-232.82347387,0.00027397,2]
[311298592,1705048240020,-9878.13,0.00027397,2]
[311298593,1705048240029,-500.0,0.00027397,2]
[311298594,1705048240039,-500.0,0.00027397,2]
[311298595,1705048240048,-500.0,0.00027397,2]
[311298596,1705048240057,-500.0,0.00027397,2]
[311298597,1705048240066,-500.0,0.00027397,2]
[311298598,1705048240076,-500.0,0.00027397,2]
[311298599,1705048240085,-500.0,0.00027397,2]
[311298600,1705048240094,-378.79126552,0.00027397,2]
[311298601,1705048240104,-500.0,0.00027397,2]
[311298602,1705048240113,-500.0,0.00027397,2]
[311298603,1705048240122,-500.0,0.00027397,2]
[311298604,1705048240132,-522.66771655,0.00027397,2]
[311298605,1705048240141,-500.0,0.00027397,2]
[311298606,1705048240150,-331.23132764,0.00027397,2]
[311298608,1705048240159,-500.0,0.00027397,2]
[311298609,1705048240168,-500.0,0.00027397,2]
[311298611,1705048240178,-500.0,0.00027397,2]
[311298614,1705048240188,-500.0,0.00027397,2]
[311298615,1705048240201,-500.0,0.00027397,2]
[311298618,1705048240210,-500.0,0.00027397,2]
[311298619,1705048240219,-500.0,0.00027397,2]
[311298621,1705048240228,-500.68191644,0.00027397,2]
[311298622,1705048240238,-501.52822313,0.00027397,2]
[311298623,1705048240248,-167.82025425,0.00027397,2]
[311298624,1705048240257,-500.0,0.00027397,2]
[311298625,1705048240267,-500.0,0.00027397,2]
[311298626,1705048240277,-5678.27,0.00027397,2]
[311298628,1705048240286,-500.0,0.00027397,2]
[311298629,1705048240295,-500.0,0.00027397,2]
[311298630,1705048240304,-2123.64,0.00027397,2]
[311298631,1705048240313,-500.0,0.00027397,2]
[311298632,1705048240322,-1004.19,0.00027397,2]
[311298633,1705048240331,-500.0,0.00027397,2]
[311298634,1705048240340,-382.08390874,0.00027397,2]
[311298635,1705048240350,-543.84182805,0.00027397,2]
[311298636,1705048240359,-500.0,0.00027397,2]
[311298637,1705048240369,-500.0,0.00027397,2]
[311298638,1705048240377,-500.0,0.00027397,2]
[311298639,1705048240388,-502.10635393,0.00027397,2]
[311298640,1705048240398,-500.0,0.00027397,2]
[311298641,1705048240407,-501.6406809,0.00027397,2]
[311298642,1705048240416,-500.0,0.00027397,2]
[311298643,1705048240425,-500.0,0.00027397,2]
[311298644,1705048240435,-500.0,0.00027397,2]
[311298645,1705048240444,-500.0,0.00027397,2]
[311298646,1705048240456,-500.0,0.00027397,2]
[311298647,1705048240466,-502.49174648,0.00027397,2]
[311298648,1705048240475,-500.0,0.00027397,2]
[311298649,1705048240484,-500.0,0.00027397,2]
[311298650,1705048240493,-500.0,0.00027397,2]
[311298651,1705048240502,-500.0,0.00027397,2]
[311298652,1705048240512,-500.0,0.00027397,2]
[311298653,1705048240521,-514.48,0.00027397,2]
[311298654,1705048240531,-501.70820656,0.00027397,5]
[311298655,1705048240542,-517.79719127,0.00027397,2]
[311298656,1705048240551,-872.05,0.00027397,2]
[311298657,1705048240561,-300.49394469,0.00027397,2]
[311298658,1705048240571,-500.0,0.00027397,2]
[311298659,1705048240582,-500.0,0.00027397,2]
[311298660,1705048240591,-500.0,0.00027397,2]
[311298661,1705048240601,-609.71,0.00027397,2]
[311298662,1705048240610,-500.0,0.00027397,2]
[311298663,1705048240623,-610.31,0.00027397,2]
[311298664,1705048240633,-2668.75780514,0.00027397,2]
[311298665,1705048240642,-2076.82617599,0.000274,2]
[311298666,1705048240651,-502.05075626,0.00027671,2]
[311298667,1705048240661,-501.35107844,0.00027671,2]
[311298668,1705048240670,-506.8353428,0.00027671,2]
[311298669,1705048240679,-500.0,0.00027671,2]
[311298670,1705048240688,-500.0,0.00027671,2]
[311298671,1705048240698,-500.81712721,0.00027671,2]
[311298672,1705048240708,-531.53090181,0.00027671,2]
[311298673,1705048240718,-500.0,0.00027671,2]
[311298674,1705048240727,-500.0,0.00027671,2]
[311298675,1705048240736,-454.87529133,0.00027671,2]
[311298676,1705048240745,-502.7428182,0.00027671,2]
[311298677,1705048240754,-500.0,0.00027671,2]
[311298678,1705048240764,-506.52956934,0.00027671,2]
[311298679,1705048240773,-500.0,0.00027671,2]
[311298680,1705048240782,-500.0,0.00027671,2]
[311298681,1705048240792,-500.98596437,0.00027671,2]
[311298682,1705048240802,-689.75,0.00027671,2]
[311298683,1705048240811,-459.48932002,0.00027671,2]
[311298684,1705048240821,-500.0,0.00027671,2]
[311298685,1705048240831,-506.34902153,0.00027671,2]
[311298686,1705048240840,-500.0,0.00027671,2]
[311298687,1705048240850,-500.0,0.00027671,2]
[311298688,1705048240859,-1003.74135269,0.00027671,2]
[311298689,1705048240869,-502.91432883,0.00027671,2]
[311298690,1705048240878,-503.40959148,0.00027671,2]
[311298691,1705048240888,-501.2579998,0.00027671,2]
[311298693,1705048240897,-620.27000169,0.00027671,2]
[311298694,1705048240907,-500.0,0.00027671,2]
[311298695,1705048240917,-530.49340494,0.00027671,2]
[311298696,1705048240927,-500.0,0.00027671,2]
[311298697,1705048240937,-503.26804536,0.00027671,2]
[311298698,1705048240946,-500.0,0.00027671,2]
[311298699,1705048240958,-798.81,0.00027671,2]
[311298700,1705048240967,-502.80420037,0.00027671,2]
[311298701,1705048240977,-500.0,0.00027671,2]
[311298702,1705048240987,-500.0,0.00027671,2]
[311298704,1705048240996,-500.0,0.00027671,2]
[311298705,1705048241006,-503.70058373,0.00027671,2]
[311298706,1705048241015,-500.0,0.00027671,2]
[311298707,1705048241025,-515.80389797,0.00027671,2]
[311298708,1705048241035,-500.0,0.00027671,2]
[311298709,1705048241044,-500.0,0.00027671,2]
[311298711,1705048241053,-501.25973667,0.00027671,2]
[311298712,1705048241063,-500.0,0.00027671,2]
[311298713,1705048241073,-500.0,0.00027671,2]
[311298714,1705048241082,-500.0,0.00027671,2]
[311298715,1705048241091,-316.2853004,0.00027671,2]
[311298716,1705048241101,-509.39293328,0.00027671,2]
[311298717,1705048241110,-1872.03,0.00027671,2]
[311298718,1705048241119,-505.23403144,0.00027671,2]
[311298719,1705048241129,-500.0,0.00027671,2]
[311298721,1705048241138,-593.26069526,0.00027671,2]
[311298722,1705048241147,-500.33793307,0.00027671,2]
[311298723,1705048241156,-500.0,0.00027671,2]
[311298724,1705048241166,-503.79144164,0.00027671,2]
[311298725,1705048241176,-501.332857,0.00027671,2]
[311298726,1705048241185,-500.0,0.00027671,2]
[311298727,1705048241194,-500.0,0.00027671,2]
[311298728,1705048241205,-245.82913321,0.00027671,2]
[311298729,1705048241214,-500.0,0.00027671,2]
[311298730,1705048241224,-500.0,0.00027671,2]
[311298731,1705048241233,-9878.13,0.00027671,2]
[311298732,1705048241242,-500.0,0.00027671,2]
[311298733,1705048241254,-500.0,0.00027671,2]
[311298734,1705048241263,-514.22040034,0.00027671,2]
[311298735,1705048241271,-500.0,0.00027671,2]
[311298736,1705048241282,-500.0,0.00027671,2]
[311298737,1705048241293,-500.0,0.00027671,2]
[311298738,1705048241302,-153.88781309,0.00027671,2]
[311298739,1705048241311,-500.0,0.00027671,2]
[311298740,1705048241320,-500.0,0.00027671,2]
[311298741,1705048241330,-319.11002705,0.00027671,2]
[311298742,1705048241339,-509.22561074,0.00027671,2]
[311298743,1705048241348,-500.0,0.00027671,2]
[311298744,1705048241358,-500.0,0.00027671,2]
[311298745,1705048241367,-506.40277622,0.00027671,2]
[311298746,1705048241376,-535.59739701,0.00027671,2]
[311298747,1705048241385,-502.12095354,0.00027671,2]
[311298748,1705048241394,-500.0,0.00027671,2]
[311298749,1705048241404,-500.0,0.00027671,2]
[311298750,1705048241413,-5678.27,0.00027671,2]
[311298751,1705048241422,-500.0,0.00027671,2]
[311298752,1705048241431,-500.0,0.00027671,2]